Cogmind - Beta 14 @@@ ROGUE MODE // 2024.08.16 @ 07:57:52 Player: szymekc Result: Destroyed by Subdweller Shrapnel Launcher Performance ------------- Evolutions (0) 0 Regions Visited (3) 600 Robots Destroyed (46) 230 Value Destroyed (1062) 1062 Prototype IDs (2) 40 Alien Tech Used (0) 0 Bonus (-866) -866 TOTAL SCORE: 1066 Bonus ------- Friendly Fire -866 Cogmind --------- Core Integrity 0/250 Matter 279/300 Energy 200/200 System Corruption 0% Temperature Cool (0) Movement Rolling (150) Ox4 Location -10/Subcaves Parts ------- > --- POWER (1) -------- Subdweller Power Source > --- PROPULSION (2) --- Armored Wheel Armored Wheel > --- UTILITY (2) ------ Huge Storage Unit Seismic Detector > --- WEAPON (2) ------- Subdweller Beam Cannon Subdweller Machine Gun > --- INVENTORY (25) --- Structural Scanner Experimental Sensor Array Makeshift Kinetic Plating Scrap Shield Powered Cannon Subdweller Shrapnel Launcher YI-UF0's Doublenader Ripper SUBCON Basin (Full) Peak State ------------ > --- POWER ------------ Subdweller Power Source > --- PROPULSION ------- Armored Wheel Armored Wheel > --- UTILITY ---------- Huge Storage Unit Seismic Detector > --- WEAPON ----------- Subdweller Beam Cannon YI-UF0's Doublenader > --- INVENTORY -------- Structural Scanner Experimental Sensor Array Makeshift Kinetic Plating Scrap Shield Subdweller Beam Cannon Powered Cannon Subdweller Machine Gun Ripper SUBCON Basin [Rating: 36] Favorites ----------- Power Improved Deuterium Engine Engine Improved Deuterium Engine Propulsion Light Treads Treads Light Treads Leg Aluminum Leg Wheel Armored Wheel Utility Seismic Detector Device Seismic Detector Storage Huge Storage Unit Protection Light Armor Plating Weapon Subdweller Beam Cannon Energy Gun Medium Laser Energy Cannon Subdweller Beam Cannon Ballistic Gun Autogun Ballistic Cannon Light Cannon Launcher YI-UF0's Doublenader Impact Weapon Mace Slashing Weapon Ripper Build | -11 -10 -10 -10 ------- Run | Yrd Mat Min Sub Slots Evolved . | . . . . Power . | . . . . Propulsion . | . . . . Utility . | . . . . Weapon . | . . . . Parts Attached 48 | 4 16 8 20 Power 5 | . 2 1 2 Engine 5 | . 2 1 2 Core . | . . . . Reactor . | . . . . Propulsion 11 | 2 5 . 4 Treads 8 | 2 4 . 2 Leg . | . . . . Wheel 3 | . 1 . 2 Hover . | . . . . Flight . | . . . . Utility 9 | 1 1 4 3 Device 5 | 1 . 3 1 Storage 2 | . 1 . 1 Processor . | . . . . Hackware . | . . . . Protection 2 | . . 1 1 Artifact . | . . . . Weapon 23 | 1 8 3 11 Energy Gun 1 | 1 . . . Energy Cannon 4 | . . . 4 Ballistic Gun 10 | . 5 2 3 Ballistic Cannon 3 | . 3 . . Launcher 2 | . . 1 1 Special Weapon . | . . . . Impact Weapon 2 | . . . 2 Slashing Weapon 1 | . . . 1 Piercing Weapon . | . . . . Special Melee Weapon . | . . . . Unidentified Prototypes 2 | . . 2 . Parts Lost 4 | . 1 . 3 Power . | . . . . Propulsion 1 | . 1 . . Utility 1 | . . . 1 Weapon 2 | . . . 2 Highest Loss Streak 2 | . 1 . 2 To Critical Strikes 1 | . . . 1 Average Slot Usage (%) 99 | . 99 100 99 Engine 14 | . 14 14 14 Treads 23 | . 27 28 21 Wheel 4 | . . . 6 Device 13 | . 14 14 13 Storage 14 | . 14 14 14 Energy Cannon 11 | . . . 18 Ballistic Gun 7 | . 11 27 1 Ballistic Cannon 2 | . 13 . . Impact Weapon 1 | . . . 2 Slashing Weapon 3 | . . . 5 Peak Build Rating 36 | 7 9 22 36 Average Rating 17 | 6 7 14 21 On Entrance 9 | 6 7 9 15 Naked Turns . | . . . . Heaviest Build 107 | 13 32 37 107 Greatest Support 40 | 40 40 40 40 Greatest Overweight (x) 4 | . 1 . 4 Average Overweight (x) 1 | . . . 2 Largest Inventory Capacity 25 | 8 15 15 25 Average Capacity 18 | 8 8 15 23 Most Carried 25 | 6 10 15 25 Average Carried 18 | 4 7 14 22 Final Capacity 25 | 8 15 15 25 Final Carried 25 | 6 10 15 25 Class Distribution -------------------- 52% | Mutant 47% | Scavenger-Mutant Dominant Class ---------------- Mutant | -10/Materials Mutant | -10/Mines Scavenger-Mutant | -10/Subcaves Resources | -11 -10 -10 -10 ----------- Run | Yrd Mat Min Sub Matter Collected 1256 | 279 492 216 269 Remotely . | . . . . Salvage Created 1538 | 163 557 324 494 Parts 111 | 16 46 10 39 Haulers Intercepted 2 | . 2 . . Recyclers Shooed . | . . . . Parts Field Recycled . | . . . . Retrieved Matter . | . . . . Parts Self-Destructed 5 | . . . 5 Prevented . | . . . . Kills | -11 -10 -10 -10 ------- Run | Yrd Mat Min Sub Combat Hostiles Destroyed 32 | . 16 2 14 Guns 11 | . 7 2 2 Cannons 16 | . 9 . 7 AOE 4 | . . . 4 Classes Destroyed 7 | 2 4 . 1 Tunneler 5 | 5 . . . Hauler 2 | . 2 . . Recycler 3 | 1 . 2 . Watcher 3 | . 3 . . Swarmer 10 | . 6 . 4 Grunt 12 | . 10 2 . Subdweller 10 | . . . 10 Best Kill Streak 5 | 4 5 2 4 Combat Bots Only 5 | . 5 2 4 Max Kills in Single Turn 4 | 1 1 1 4 Gunslinging . | . . . . Exploded 4 | . . . 4 Melee . | . . . . Uniques/NPCs Destroyed 1 | . . 1 . YI-UF0 (-10/Mines) Combat | -11 -10 -10 -10 -------- Run | Yrd Mat Min Sub Hostile Shots Fired 117 | . 51 12 54 Missed 33 | . 9 7 17 Damage Taken 1481 | . 479 66 936 Core 255 | . 50 16 189 Absorbed by Shields . | . . . . Regen/Repaired (Parts) 93 | . 93 . . Core Remaining (%) 100 | 100 . . . Volleys Fired 117 | 13 50 17 37 Largest 2 | 2 2 2 2 Hottest 160 | 70 70 46 160 Shots Fired 219 | 26 100 34 59 Gun 128 | 26 48 34 20 Cannon 90 | . 52 . 38 Launcher 1 | . . . 1 Special . | . . . . Kinetic 163 | 13 96 34 20 Thermal 55 | 13 4 . 38 Explosive 1 | . . . 1 Electromagnetic . | . . . . Robot Hit Streak 18 | 3 18 8 16 Robot Miss Streak 4 | 4 2 3 2 Penetration Max . | . . . . Secondary Targets 1 | . . . 1 Max Gunslinging Chain 1 | . . . 1 Shots Hit Robots 147 | 13 70 22 42 Core Hits 59 | 7 26 9 17 Critical Kills 2 | . . 1 1 Critical Parts Destroyed 2 | . 1 1 . Critical Strikes 8 | . 5 2 1 Burn 2 | . 2 . . Meltdown 1 | . . . 1 Destroy 3 | . 1 2 . Blast 2 | . 2 . . Melee Attacks 24 | . . . 24 Impact 2 | . . . 2 Slashing 22 | . . . 22 Piercing . | . . . . Sneak Attacks 1 | . . . 1 Combat Hostiles . | . . . . Follow-up Attacks . | . . . . Damage Inflicted 2600 | 186 1035 331 1048 Guns 1145 | 186 409 331 219 Cannons 1238 | . 626 . 612 Explosions 153 | . . . 153 Melee 64 | . . . 64 Ramming . | . . . . Kinetic 1659 | 100 1009 331 219 Thermal 724 | 86 26 . 612 Explosive 153 | . . . 153 Electromagnetic . | . . . . Impact . | . . . . Slashing 64 | . . . 64 Piercing . | . . . . Highest Corruption . | . . . . Average Corruption . | . . . . Corruption Purged . | . . . . Corruption Blocked . | . . . . Overload Shots . | . . . . Overflow Damage 44 | . 10 . 34 Projectiles 10 | . 10 . . Explosions . | . . . . Melee 34 | . . . 34 Knockbacks 5 | . 5 . . Impact . | . . . . Kinetic 5 | . 5 . . Secondary . | . . . . Self-Inflicted Damage . | . . . . Shots . | . . . . Rammed . | . . . . Targets Rammed . | . . . . Kicked . | . . . . Crushed . | . . . . Highest Temperature 247 | 81 78 39 247 Average Temperature 37 | 34 18 12 74 Received Heat Transfer 703 | . 213 39 451 Siege Activations . | . . . . Robots Corrupted . | . . . . Combat Hostiles . | . . . . Parts Fried . | . . . . Impact Corruptions . | . . . . Robots Melted 1 | . . . 1 Combat Hostiles 1 | . . . 1 Parts Melted 4 | 1 . . 3 Heat Transferred 1295 | 259 222 . 814 Parts Sabotaged . | . . . . Parts Stolen . | . . . . Parts Stripped . | . . . . Power Chain Reactions . | . . . . Alert | -11 -10 -10 -10 ------- Run | Yrd Mat Min Sub Peak Influence 298 | 30 298 143 . Initial 88 | . 19 88 . Average 125 | 13 174 66 . Maximum Alert Level 1 | . 1 . . Low Security (%) 71 | 100 49 100 . Level 1 28 | . 50 . . Level 2 . | . . . . Level 3 . | . . . . Level 4 . | . . . . Level 5 . | . . . . High Security . | . . . . Max Security . | . . . . Squads Dispatched 4 | . 4 . . Investigation 2 | . 2 . . Extermination . | . . . . Reinforcement 2 | . 2 . . Assault . | . . . . Garrison . | . . . . Intercept . | . . . . Searches Triggered . | . . . . Construction Impeded . | . . . . Haulers Reinforced . | . . . . Active Scanning Responses . | . . . . Cargo Convoy Interrupts . | . . . . Stealth | -11 -10 -10 -10 --------- Run | Yrd Mat Min Sub Distress Signals 1 | . 1 . . Communications Jammed . | . . . . Distress Signals . | . . . . Times Spotted 40 | . 22 2 16 Peak Tracking Total 6 | . 4 2 6 Tactical Retreats 2 | . . . 2 Traps | -11 -10 -10 -10 ------- Run | Yrd Mat Min Sub Traps Triggered 7 | . 4 . 3 Indirectly . | . . . . Trap Hack Attempts . | . . . . Triggered . | . . . . Disarmed . | . . . . Reprogrammed . | . . . . Reused . | . . . . Traps Extracted . | . . . . Installed . | . . . . Triggered 1 | . . . 1 Machines | -11 -10 -10 -10 ---------- Run | Yrd Mat Min Sub Machines Disabled 1 | . 1 . . Max in Single Turn 1 | . 1 . . Machines Repaired . | . . . . Machines Dismantled . | . . . . Machines Sabotaged . | . . . . Overloaded Fab Kills . | . . . . Hacking | -11 -10 -10 -10 --------- Run | Yrd Mat Min Sub Machines Accessed 11 | . 9 . 2 Terminals 6 | . 6 . . Fabricators . | . . . . Repair Stations 1 | . 1 . . Recycling Units 2 | . 2 . . Scanalyzers . | . . . . Garrison Access . | . . . . Total Hacks 25 | . 22 . 3 Successful 17 | . 14 . 3 Failed 7 | . 7 . . Catastrophic . | . . . . Database Lockouts 1 | . 1 . . Manual 16 | . 16 . . Terminals 14 | . 14 . . Fabricators . | . . . . Repair Stations 3 | . 3 . . Recycling Units 5 | . 5 . . Scanalyzers . | . . . . Garrison Access . | . . . . Terminal Hacks 5 | . 2 . 3 Record 1 | . . . 1 Robot Analysis 1 | . 1 . . Open Door 1 | . . . 1 Terminal Index 1 | . 1 . . Release Object 1 | . . . 1 Fabricator Hacks . | . . . . Repair Station Hacks 2 | . 2 . . Scan Component 1 | . 1 . . Repair 1 | . 1 . . Recycling Unit Hacks 2 | . 2 . . Retrieve Components 2 | . 2 . . Scanalyzer . | . . . . Garrison Access Hacks . | . . . . Unauthorized Hacks 8 | . 8 . . Terminals 6 | . 6 . . Botnet 1 | . 1 . . Skim 5 | . 5 . . Fabricators . | . . . . Repair Stations . | . . . . Recycling Units 2 | . 2 . . Tunnel 2 | . 2 . . Scanalyzers . | . . . . Garrison Access . | . . . . Data Cores Recovered . | . . . . Used . | . . . . Hacking Detections 6 | . 6 . . Full Trace Events . | . . . . Feedback Events . | . . . . Feedback Blocked . | . . . . Robot Schematics Acquired . | . . . . Robots Built . | . . . . Authchips . | . . . . Time . | . . . . Total Robot Build Rating . | . . . . Part Schematics Acquired . | . . . . Parts Built . | . . . . Authchips . | . . . . Time . | . . . . Total Part Build Rating . | . . . . Parts Repaired 1 | . 1 . . Time 26 | . 26 . . Parts Recycled . | . . . . Recycled Matter . | . . . . Retrieved Matter . | . . . . Retrieved Components 16 | . 16 . . Parts Scanalyzed . | . . . . Part Schematics Acquired . | . . . . Parts Damaged . | . . . . Bothacking | -11 -10 -10 -10 ------------ Run | Yrd Mat Min Sub Used RIF Installer . | . . . . Robots Hacked . | . . . . Non-combat . | . . . . Combat . | . . . . Robot Hacks Applied . | . . . . Relay Couplers Released . | . . . . Fabnet Peak Effective % . | . . . . Robots Rewired . | . . . . Allies Hacked . | . . . . Hacks Repelled . | . . . . Allies | -11 -10 -10 -10 -------- Run | Yrd Mat Min Sub Total Allies . | . . . . Largest Group . | . . . . Highest-Rated Group . | . . . . Highest-Rated Ally . | . . . . Total Orders . | . . . . Ally Attacks . | . . . . Total Damage . | . . . . Kills . | . . . . Allies Corrupted . | . . . . Allies Melted . | . . . . Intel | -11 -10 -10 -10 ------- Run | Yrd Mat Min Sub Robot Analysis Total 1 | . 1 . . Derelict Logs Recovered 2 | . . 1 1 Drone Launches . | . . . . Drone Recoveries . | . . . . Exploration | -11 -10 -10 -10 ------------- Run | Yrd Mat Min Sub Turns Passed 5476 | 87 1173 798 3418 Spaces Moved 1992 | 24 548 434 986 Core . | . . . . Treads 1596 | 24 528 434 610 Legs . | . . . . Wheels 396 | . 20 . 376 Hover . | . . . . Flight . | . . . . Fastest Speed 95 | 160 95 160 135 Average Speed 200 | 160 157 160 244 Slowest Speed 320 | 160 160 160 320 Overloaded Moves . | . . . . Propulsion Burnouts . | . . . . Robots Hopped . | . . . . Cave-ins Triggered . | . . . . Exploration Rate (%) 62 | 3 93 95 59 Regions Visited 3 Branch Regions 2 Pre-discovered Areas 2 | . 2 . . Known Exits Taken . | . . . . Unknown Exits Taken 3 | 1 1 1 . Scrap Searched 10 | . . 3 7 Spaces Dug 9 | . . . 9 Terrain Destroyed 21 | . . . 21 Melee 7 | . . . 7 Projectile 3 | . . . 3 AOE 11 | . . . 11 Terrain Rammed . | . . . . Walls Destroyed . | . . . . Machines Disabled . | . . . . Actions | -11 -10 -10 -10 --------- Run | Yrd Mat Min Sub Total 3224 | 46 764 508 1906 Wait 964 | 1 122 41 800 Move 1989 | 23 547 433 986 Hop . | . . . . Pick Up 41 | 3 15 6 17 Fast Attach 13 | . 11 1 1 Attach 6 | 1 1 . 4 Detach . | . . . . Swap 29 | 3 4 7 15 Drop 41 | 2 14 3 22 Fire 117 | 13 50 17 37 Melee 24 | . . . 24 Ram . | . . . . Kick . | . . . . Crush . | . . . . Escape Stasis . | . . . . Rewire . | . . . . Trap . | . . . . Miscellaneous . | . . . . Route ------- -11/Scrapyard -10/Materials (discovered 4 exits: [*Mat x3] / [*Min]) -10/Mines (discovered 4 exits: [*Mat x2] / [*Exi] / *Sub) -10/Subcaves History --------- Turn | Location | Event 34 | -11/Scrapyard | Discovered new exit (range 3) 88 | -11/Scrapyard | Entered Materials 326 | -10/Materials | Build established: Mutant 665 | -10/Materials | Discovered new exit (range 13) 778 | -10/Materials | Discovered new exit (range 15) 1030 | -10/Materials | Discovered new exit (range 13) 1057 | -10/Materials | Repaired Lgt. Treads 1211 | -10/Materials | Central database locked down 1218 | -10/Materials | Discovered new exit (range 16) 1261 | -10/Materials | Entered Mines 1294 | -10/Mines | YI-UF0 nonchalantly dropped a Grenade Launcher on the ground 1318 | -10/Mines | Murdered YI-UF0 1335 | -10/Mines | Found Prototype Launcher 1485 | -10/Mines | Found a damaged Exp. Sensor Array with a note attached 1488 | -10/Mines | Found Prototype Device 1489 | -10/Mines | Identified YI-UF0's Doublenader 1492 | -10/Mines | Identified Exp. Sensor Array 1636 | -10/Mines | Discovered new exit (range 5) 1666 | -10/Mines | Learned 2 Materials zone layouts 1700 | -10/Mines | Discovered new exit (range 15) 1851 | -10/Mines | Joined a pair of Derelicts in attacking an 0b10 outpost 1905 | -10/Mines | Deemed a non-threat by the Exiles lab entrance 1905 | -10/Mines | Discovered new exit (range 5) 2054 | -10/Mines | Discovered new exit (range 4) 2059 | -10/Mines | Entered Subcaves 2063 | -10/Subcaves | Ambushed by Subdwellers from Twisted Machinery 2085 | -10/Subcaves | Core integrity fell below 50% 2361 | -10/Subcaves | Build established: Scavenger-Mutant 3067 | -10/Subcaves | A swath of the cavern ceiling suddenly collapsed 3189 | -10/Subcaves | A Subdweller sparked back to life 3189 | -10/Subcaves | A Subdweller sparked back to life 3189 | -10/Subcaves | A Subdweller sparked back to life 3252 | -10/Subcaves | Found Prototype Energy Cannon 3286 | -10/Subcaves | Shifting Twisted Machinery released Mak. Kinetic Plating 3306 | -10/Subcaves | Shifting Twisted Machinery released Sub. Laser 4647 | -10/Subcaves | Learned Materials garrison access intel 4682 | -10/Subcaves | Found SUBCON Basin 4944 | -10/Subcaves | Build established: Mutant 5003 | -10/Subcaves | Core integrity fell below 20% 5188 | -10/Subcaves | Disturbed a concealed Subdweller 5477 | -10/Subcaves | Destroyed by Subdweller Shrapnel Launcher Last Messages --------------- 04675_ Dropped Sub. Laser. 04680_ Connecting with SUBCON Basin Controls... 04682_ Acquired SUBCON Basin. 04686_ Subatomizers dissect the Sub. Monowheel. 04703_ QT-QXN(R) destroyed. 04709_ Z1-9YG(R) destroyed. 04727_ Acquired 49 matter. 04730_ Acquired 1 matter. 04733_ Dropped Sub. Power Source. 05003_ IV-XDZ(R) destroyed. 05142_ S-10 Pest destroyed. 05147_ Flight Unit fries itself beyond repair. 05206_ Critical hit (Destroy). 05206_ Sub. Beam Cannon destroyed. 05207_ FH-RR0(R) destroyed. 05211_ Acquired 39 matter. 05252_ JR-HXD(u) tweaks Twisted Machinery. 05458_ Acquired Sub. Shrapnel Launcher. 05474_ Subatomizers dissect the Sub. Power Source. 05477_ BB-LCB(R) destroyed. Map ----- +----------------------------------------------------+ | ########?????????????# ### ####?# ##?# | | ## #?????????????## ##### #???# ##??? | | ## #??????????????### #### #??? ###?? | | ## #????????????????# ## #??# ##? | | ###????????????????## ##?? # | | ##???????????????????# ##??# | | #????????????????????#### ## ##??# | | #???????????????????????##### #### | | ## #????????????????????????## ## | | ?## #????????????????????????# ### | | ??#####????????????????????????# ##?## | | #??????????????????????????????# ##???## | | #??????????????????????####????# ## #?????## | | ###???????????????????## ##???## #### ###????## | | ##??????????????????# ######"#### #???#### | | #####????#######??### ;; ##&&"![ #???# ##? | | # #????#"""""#?## #; & &% ##???# #? | | ## #????#"X !"### ; =&*& ###### #? | | ## ###????#""=="#" # ; !# ## ## | | # ##??????#""*="#"= # # ## | | ## ####?????#""==[]!![## # | | "#"## #?????#""[/"#"X### ;" # | | #"## ##?############# ##" "# # | | ## ### #?????????### ### " ### ## | | # # #???????????## ## """ ## ####### | | ### #???????######@ # " # #?????## | | ## ##?###### ### ??????## | | ## ## ### "* %= ##?#" ??????? | | ?? ?# ##""" # #??#" ??????? | | ## #?# "" " ;;## #?##""" ??????? | | # ## """ ##; ;;???# ##??## ### ??????? | | """ #######????###????###??? ??????? | | ########" #??????????????????????? ??????? | | ???????# #??????????????????????????????? | | ??????## ##??????????????????????????????? | | # # ??????# #??????????????????????????????? | | " # ??????# #??????????????????????????????? | | "&## ??????## #??????????????????????????????? | | ]&&###"?????### ##??????????????????????????????? | | " &"#???????#"# #???????????????????????????????? | | "" ##???????# # #???????????????????????????????? | | """" #???????# # #???????????????????????????????? | | "#" ##??????# ##???????????????????????????????? | | #""## #####??# ##????????????????????????????????? | | #"" #??###?????????????????????????????????? | | " ##??????????????????????????????????????? | | "" ##???????????????????????????????????????? | | " ##????????????????????????????????????????? | | ##### #?????????????????????????????????????????? | | ????####?????????????????????????????????????????? | +----------------------------------------------------+ Best States ------------- Heat Dissipation 25 Energy Generation 16 Energy Capacity 290 Matter Stores 300 Matter Capacity 300 Sight Range 16 Terrain Scan Density 10 Armor Coverage 150 Evasion (%) 41 Recoil Reduction 2 Item Schematics ----------------- None Robot Schematics ------------------ None Fabricated ------------ Nothing Alien Tech Used ----------------- None Achievements -------------- None Challenges ------------ None Game ------ Seed IntegrityHugeDatajack Manual? 0 Play Time 00:35:14 Cumulative 334.0 hours Start 2024.08.16 @ 07:24:45 End 2024.08.16 @ 07:57:52 Sessions 1 Manual Loads 0 Difficulty Rogue Special Mode None Game No. 124 Rogue 122 Adventurer 2 Explorer 0 Win Type - Total 15 Types 6/0/7/1/0/0/0/1/0 Lore% 65 Gallery% 82 Achievement% 75 Wizard Run 0 Options --------- Layout 0 ASCII 0 Keyboard 0 Movement Numpad Keybinds 0 Fullscreen 2 Font 24/Smallcaps Map View 76x50 Zoom Use 0% Tactical HUD 1 Map Filters NONE Filters NONE Steam 1 RUN: 10956ae8-b5b6-4cab-bc53-627a7399f136